fUST/lending_fUST_20251025
["ID","MTS","AMOUNT","RATE_DAILY","PERIOD"]
[392316460,1761330655656,-300.0,0.0003491,2]
[392316461,1761330655666,-3894.02328768,0.0003491,2]
[392316462,1761330655675,-812.44826322,0.0003491,2]
[392316463,1761330655684,-259.07658991,0.0003491,2]
[392316464,1761330655693,-297.88421457,0.0003491,2]
[392316465,1761330655702,-328.11733068,0.0003491,2]
[392316466,1761330655712,-292.83688805,0.0003491,2]
[392316467,1761330655721,-639.40471011,0.0003491,2]
[392316468,1761330655731,-1366.46428878,0.0003491,2]
[392316469,1761330655740,-157.15160959,0.0003491,2]
[392316470,1761330655750,-6314.07247622,0.0003491,2]
[392316471,1761330655759,-158.15432119,0.0003491,2]
[392316472,1761330655768,-2497.74501647,0.0003491,7]
[392316473,1761330655778,-7505.18976184,0.0003491,2]
[392316474,1761330655787,-1723.05312389,0.0003491,2]
[392316475,1761330655796,-2083.62260892,0.0003491,2]
[392316476,1761330655806,-1500.0,0.0003491,3]
[392316477,1761330655816,-509.38835246,0.0003491,2]
[392316478,1761330655825,-1004.28317297,0.0003491,2]
[392316479,1761330655834,-179.93577561,0.0003491,2]
[392316480,1761330655844,-469.51560512,0.0003491,2]
[392316481,1761330655853,-189.8077882,0.0003491,2]
[392316482,1761330655863,-1199.04797905,0.0003491,2]
[392316483,1761330655872,-1401.64327529,0.0003491,2]
[392316484,1761330655882,-5915.52978909,0.0003491,2]
[392316485,1761330655891,-10717.00818423,0.0003491,2]
[392316486,1761330655900,-653.38921168,0.0003491,2]
[392316487,1761330655910,-203.65584954,0.0003491,2]
[392316488,1761330655919,-2920.0,0.0003491,2]
[392316489,1761330655929,-1447.54164351,0.0003491,2]
[392316490,1761330655940,-386.14839092,0.0003491,2]
[392316491,1761330655950,-202.02716404,0.0003491,2]
[392316492,1761330655960,-797.28005474,0.0003491,3]
[392316493,1761330655969,-3157.59071815,0.0003491,2]
[392316494,1761330655979,-365.86420449,0.0003491,2]
[392316495,1761330655988,-167.13334763,0.0003491,2]
[392316496,1761330655998,-150.84887081,0.0003491,2]
[392316497,1761330656007,-259.41029028,0.0003491,2]
[392316498,1761330656016,-3778.38275187,0.0003491,2]
[392316499,1761330656026,-310.37712936,0.0003491,2]
[392316500,1761330656035,-2963.24659772,0.0003491,2]
[392316501,1761330656044,-36356.99981927,0.0003491,2]
[392316502,1761330656054,-2000.27956102,0.0003491,2]
[392316503,1761330656063,-91516.23247397,0.0003491,2]
[392316504,1761330656072,-22724.09411631,0.0003491,2]
[392316505,1761330656082,-51858.90470407,0.0003491,2]
[392316506,1761330656091,-3100.0,0.0003491,7]
[392316507,1761330656101,-498.0,0.0003491,7]
[392316508,1761330656110,-30545.86301196,0.0003491,2]
[392316509,1761330656119,-154.70005823,0.0003491,7]
[392316510,1761330656133,-100581.09135221,0.0003491,2]
[392316511,1761330656142,-2522.71377889,0.0003491,7]
[392316512,1761330656153,-176.91218454,0.0003491,7]
[392316513,1761330656162,-323541.41177711,0.0003491,20]
[392316514,1761330656173,-3095.2218862,0.0003491,2]
[392316515,1761330656183,-409161.53604132,0.0003491,20]
[392316516,1761330656192,-1943.83479006,0.0003491,5]
[392316517,1761330656204,-699.71455909,0.0003491,12]
[392316518,1761330656215,-30580.52039502,0.0003491,2]
[392316519,1761330656224,-323.06947,0.0003491,60]
[392316520,1761330656234,-323.06947,0.0003491,60]
[392316521,1761330656244,-323.06947,0.0003491,60]
[392316522,1761330656254,-323.06947,0.0003491,60]
[392316523,1761330656264,-323.06947,0.0003491,60]
[392316524,1761330656273,-863.59,0.0003491,30]
[392316525,1761330656282,-3000.0,0.0003491,120]
[392316526,1761330656291,-510.73905823,0.0003491,120]
[392316527,1761330656300,-1150896.31684459,0.0003491,20]
[392316528,1761330809249,5000.02,0.0001866,2]
[392316529,1761330809271,10000.01,0.0001866,2]
[392316530,1761330809294,10000.01,0.0001866,2]
[392316531,1761330809315,10000.01,0.0001866,2]
[392316532,1761330809336,10000.01,0.0001866,2]
[392316533,1761330809359,10000.01,0.0001866,2]
[392316534,1761330809381,10000.01,0.0001866,2]
[392316535,1761330809402,10000.01,0.0001866,2]
[392316536,1761330809424,10000.01,0.0001866,2]
[392316537,1761330809449,10000.01,0.0001866,2]
[392316538,1761330809477,274999.89,0.0001866,2]
[392316539,1761330857729,5000.0,0.00018696,2]
[392316540,1761330879988,5000.0,0.00018696,2]
[392316541,1761330901633,0.01,0.00018696,2]
[392316542,1761330901656,4999.99,0.00018696,2]
[392316543,1761330923294,5000.0,0.00018696,2]
[392316544,1761330945124,0.02,0.00018696,2]
[392316545,1761330945146,4999.98,0.00018696,2]
[392316546,1761330966870,5000.0,0.00018696,2]
[392316547,1761330988363,0.03,0.00016,2]
[392316548,1761330988387,195.97,0.00016,2]
[392316549,1761330988589,196.0,0.000161,2]
[392316550,1761330988791,196.0,0.000162,2]
[392316551,1761330988882,5000.0,0.00018696,2]
[392316552,1761330989005,196.0,0.000163,2]
[392316553,1761330989207,196.0,0.000164,2]
[392316554,1761330989419,196.0,0.000165,2]
[392316555,1761330989636,196.0,0.000166,2]
[392316556,1761330989855,196.0,0.000167,2]
[392316557,1761330990067,196.0,0.000168,2]
[392316558,1761330990274,196.0,0.000169,2]
[392316559,1761330990501,196.0,0.00017,2]
[392316560,1761330990789,196.0,0.000171,2]
[392316561,1761330991036,196.0,0.000172,2]
[392316562,1761330991246,196.0,0.000173,2]
[392316563,1761330991538,196.0,0.000174,2]
[392316564,1761330991755,196.0,0.000175,2]
[392316565,1761330991969,196.0,0.000176,2]
[392316566,1761330992184,196.0,0.000177,2]
[392316567,1761330992420,196.0,0.000178,2]
[392316568,1761330992746,196.0,0.000179,2]
[392316569,1761330992953,196.0,0.00018,2]
[392316570,1761330993165,367.39927344,0.000181,2]
[392316571,1761331011215,516.64072656,0.00018696,2]
[392316572,1761331011239,4483.35927344,0.00018696,2]
[392316573,1761331026407,4809.6029153,0.00018696,2]
[392316574,1761331032077,300.0,0.000181,2]
[392316575,1761331033357,407.04781126,0.00018,2]
[392316576,1761331033385,1874.73451589,0.00018,2]
[392316577,1761331034200,5000.0,0.00018696,2]
[392316578,1761331042617,300.0,0.000181,2]
[392316579,1761331043122,2825.27548411,0.00018696,2]
[392316580,1761331043147,2174.72451589,0.00018696,2]
[392316581,1761331058225,5000.0,0.00018696,2]
[392316582,1761331065947,2825.28548411,0.00018696,2]
[392316583,1761331065972,2174.71451589,0.00018696,2]
[392316584,1761331081010,5000.0,0.00018696,2]
[392316585,1761331088754,2825.29548411,0.00018696,2]
[392316586,1761331088777,2174.70451589,0.00018696,2]
[392316588,1761331103855,5000.0,0.00018696,2]
[392316589,1761331108882,224.16996367,0.00016,2]
[392316590,1761331111825,2601.13552044,0.00018696,2]
[392316591,1761331111849,2398.86447956,0.00018696,2]
[392316592,1761331127221,5000.0,0.00018696,2]
[392316593,1761331134986,2601.14552044,0.00018696,2]
[392316594,1761331135011,2398.85447956,0.00018696,2]
[392316595,1761331150681,5000.0,0.00018696,2]
[392316596,1761331158374,2601.15552044,0.00018696,2]
[392316597,1761331158399,2398.84447956,0.00018696,2]
[392316598,1761331173514,5000.0,0.00018696,2]
[392316599,1761331181310,5000.0,0.00018696,2]
[392316600,1761331196526,5000.0,0.00018696,2]
[392316601,1761331205418,0.01,0.00018696,2]
[392316602,1761331205452,4999.99,0.00018696,2]
[392316603,1761331219971,5000.0,0.00018696,2]
[392316604,1761331227772,5000.0,0.00018696,2]
[392316605,1761331243011,5000.0,0.00018696,2]
[392316606,1761331250803,0.01,0.00018696,2]
[392316607,1761331250825,3173.04099989,0.00018696,2]
[392316608,1761331266108,5000.0,0.00018696,2]
[392316609,1761331288436,5000.0,0.00018696,2]
[392316610,1761331310679,5000.0,0.00018696,2]
[392316611,1761331333112,0.01,0.00018696,2]
[392316612,1761331333135,4999.99,0.00018696,2]
[392316613,1761331356522,5000.0,0.00018696,2]
[392316614,1761331379386,0.02,0.00018696,2]
[392316615,1761331379408,4999.98,0.00018696,2]
[392316616,1761331401751,5000.0,0.00018696,2]
[392316617,1761331424590,0.03,0.00018696,2]
[392316621,1761331518196,943.092025,0.00013699,2]
[392316622,1761331616895,5000.0,0.00018695,2]
[392316629,1761331639221,2923.63142314,0.00018695,2]
[392316651,1761331831744,-300.0,0.000187,2]
[392316652,1761331831754,-445.84321954,0.000187,2]
[392316653,1761331831763,-238.08845035,0.00018735,2]
[392316654,1761331831773,-500.0,0.00018769,2]
[392316655,1761331831782,-500.0,0.00018769,2]
[392316656,1761331831792,-302.8183302,0.000189,2]
[392316657,1761331831801,-222.7179006,0.000189,2]
[392316658,1761331831811,-302.8183302,0.00019089,2]
[392316659,1761331831820,-302.8183302,0.00019278,2]
[392316660,1761331831829,-302.8183302,0.00019467,2]
[392316661,1761331831838,-302.8183302,0.00019656,2]
[392316662,1761331831848,-454.2274953,0.00019845,4]
[392316663,1761331831857,-300.0,0.00019999,2]
[392316664,1761331831867,-10864.96,0.0002,2]
[392316665,1761331831876,-151.49916002,0.0002,2]
[392316666,1761331831887,-454.2274953,0.00020034,4]
[392316667,1761331831897,-943.092025,0.00020187,2]
[392316668,1761331831906,-3974.8965333,0.00020211,2]
[392316670,1761331831916,-454.2274953,0.00020223,4]
[392316671,1761331831925,-300.0,0.00020399,2]
[392316672,1761331831935,-300.0,0.00020399,2]
[392316673,1761331831944,-300.0,0.00020399,2]
[392316674,1761331831953,-300.0,0.00020399,2]
[392316675,1761331831966,-300.0,0.00020399,2]
[392316676,1761331831975,-300.0,0.00020399,2]
[392316677,1761331831984,-300.0,0.00020399,2]
[392316678,1761331831993,-300.0,0.00020399,2]
[392316679,1761331832003,-300.0,0.00020399,2]
[392316680,1761331832013,-300.0,0.00020399,2]
[392316681,1761331832023,-300.0,0.00020399,2]
[392316682,1761331832033,-300.0,0.00020399,2]
[392316683,1761331832044,-300.0,0.00020399,2]
[392316684,1761331832053,-300.0,0.00020399,2]
[392316685,1761331832063,-300.0,0.00020399,2]
[392316686,1761331832072,-454.2274953,0.00020412,4]
[392316687,1761331832082,-453.84927496,0.00020601,4]
[392316688,1761331832091,-280.94437141,0.00020735,2]
[392316689,1761331832101,-500.0,0.00020798,2]
[392316691,1761331832111,-500.0,0.00020798,2]
[392316692,1761331832121,-224.30553669,0.00020798,2]
[392316693,1761331832131,-500.0,0.00020798,2]
[392316694,1761331832140,-500.0,0.00020798,2]
[392316695,1761331832150,-500.0,0.00020798,2]
[392316696,1761331832159,-500.0,0.00020798,2]
[392316697,1761331832169,-500.0,0.00020798,2]
[392316698,1761331832178,-500.0,0.00020798,2]
[392316699,1761331832188,-453.47098432,0.00020798,2]
[392316700,1761331832198,-500.0,0.00020798,2]
[392316701,1761331832207,-500.0,0.00020798,2]
[392316702,1761331832216,-500.0,0.00020798,2]
[392316703,1761331832226,-500.0,0.00020798,2]
[392316704,1761331832235,-200.0,0.00020798,2]
[392316705,1761331832244,-557.54703135,0.00020798,2]
[392316706,1761331832255,-500.0,0.00020798,2]
[392316707,1761331832264,-500.0,0.00020798,2]
[392316708,1761331832275,-500.0,0.00020798,2]
[392316709,1761331832284,-500.0,0.00020798,2]
[392316710,1761331832293,-500.0,0.00020798,2]
[392316711,1761331832303,-500.0,0.00020798,2]
[392316712,1761331832313,-250.0162,0.00020798,2]
[392316713,1761331832322,-500.0,0.00020798,2]
[392316714,1761331832331,-500.0,0.00020798,2]
[392316715,1761331832340,-250.0081,0.00020798,2]
[392316716,1761331832349,-500.0,0.00020798,2]
[392316717,1761331832359,-500.0,0.00020798,2]
[392316718,1761331832367,-355.78482879,0.00020798,2]
[392316719,1761331832376,-500.0,0.00020798,2]
[392316720,1761331832386,-157.53803135,0.00020798,2]
[392316721,1761331832396,-500.0,0.00020798,2]
[392316722,1761331832406,-335.9249373,0.00020798,2]
[392316723,1761331832415,-403.33096709,0.00020828,2]
[392316724,1761331832425,-965.396,0.00021131,2]
[392316725,1761331832435,-300.0,0.00021777,2]
[392316726,1761331832444,-500.0,0.00021918,2]
[392316727,1761331832454,-600.0,0.00022466,20]
[392316728,1761331832463,-323.80029247,0.00022735,2]
[392316729,1761331832473,-405.0,0.00023,7]
[392316730,1761331832482,-364.5003844,0.00023014,2]
[392316731,1761331832492,-666.0,0.00023064,2]
[392316732,1761331832502,-405.0,0.00023374,7]
[392316733,1761331832511,-403.33096709,0.000235,7]
[392316734,1761331832521,-405.0,0.00024255,7]
[392316735,1761331832530,-307.8364998,0.00024658,2]
[392316736,1761331832540,-250.0,0.00024709,2]
[392316737,1761331832549,-720.0,0.00024712,20]
[392316738,1761331832559,-366.65621354,0.00024735,2]
[392316739,1761331832568,-360.24455296,0.00025368,2]
[392316740,1761331832578,-409.0,0.00025468,7]
[392316741,1761331832587,-943.092025,0.00026676,2]
[392316742,1761331832596,-409.5121346,0.00026735,2]
[392316743,1761331832605,-305.0,0.00026822,14]
[392316744,1761331832615,-405.0,0.00027166,7]
[392316745,1761331832625,-864.0,0.00027183,30]
[392316746,1761331832634,-199.0,0.00027671,7]
[392316747,1761331832643,-249.967,0.00028503,20]
[392316748,1761331832653,-452.36805566,0.00028735,2]
[392316749,1761331832662,-405.0,0.00028863,14]
[392316750,1761331832671,-405.0,0.00029106,14]
[392316751,1761331832680,-360.24455296,0.00029852,2]
[392316752,1761331832690,-1000.0,0.00029902,30]
[392316753,1761331832699,-177.0,0.0003011,38]
[392316754,1761331832709,-300.0,0.00030136,7]
[392316755,1761331832719,-405.0,0.00030561,14]
[392316756,1761331832728,-403.33096709,0.000306,7]
[392316757,1761331832738,-495.22397672,0.00030735,2]
[392316758,1761331832747,-926.32,0.000324,7]
[392316759,1761331832757,-538.07989779,0.00032735,2]
[392316760,1761331832766,-1000.0,0.00032892,30]
[392316761,1761331832775,-244.0,0.00032892,30]
[392316762,1761331832784,-278.352,0.00032944,30]
[392316763,1761331832794,-943.092025,0.00033165,2]
[392316764,1761331832803,-500.0,0.00033266,7]
[392316765,1761331832813,-360.24455296,0.00034335,2]
[392316766,1761331832822,-178.40596874,0.00034345,2]
[392316767,1761331832831,-178.40596873,0.0003435,2]
[392316768,1761331832840,-178.40596873,0.00034355,2]
[392316769,1761331832850,-12331.35,0.00034425,10]
[392316770,1761331832860,-10276.13,0.00034425,10]
[392316771,1761331832870,-40665.19457477,0.00034435,2]
[392316772,1761331832883,-1719.29900691,0.00034435,2]
[392316773,1761331832894,-91134.67478731,0.00034435,2]
[392316777,1761331837578,-307.8364998,0.00029,2]
[392316883,1761332889400,206.474724,0.00012486,2]
[392316884,1761333023982,178.589625,0.0002627,120]
[392316926,1761333040019,-411.0,0.0002051,2]
[392316927,1761333040030,-49.3624554,0.00020828,2]
[392317000,1761333142578,160.0,0.00013699,2]
[392317001,1761333142891,260.0,0.00014247,2]
[392317002,1761333143199,360.0,0.00014795,2]
[392317003,1761333143519,460.0,0.00015342,2]
[392317004,1761333143837,560.0,0.0001589,2]
[392317005,1761333144159,660.0,0.00016438,2]
[392317006,1761333144470,760.0,0.00016986,2]
[392317007,1761333144796,860.0,0.00017534,2]
[392317008,1761333145105,766.24359241,0.00018082,2]
[392317032,1761334067769,10000.01,0.00018,2]
[392317033,1761334067794,9673.5765075,0.00018,2]
[392317038,1761334101487,326.4334925,0.000176,2]
[392317039,1761334101511,1789.33133784,0.000176,2]
[392317040,1761334105598,286.76549093,0.0001,2]
[392317050,1761334122264,2345.04535693,0.0001,2]
[392317051,1761334123061,261.29334924,0.00015,2]
[392317052,1761334123971,-353.57678825,0.00034758,30]
[392317053,1761334123994,-212.48183257,0.00034758,120]
[392317054,1761334124018,-283.18072257,0.00034758,120]
[392317055,1761334124043,-237.72402859,0.00034758,120]
[392317056,1761334124066,-249.90680756,0.00034758,31]
[392317057,1761334124091,-177.07568562,0.00034758,120]
[392317058,1761334124118,-1152.77388357,0.00034758,120]
[392317059,1761334124142,-240.82074905,0.00034758,120]
[392317060,1761334124171,-249.02764889,0.00034758,120]
[392317061,1761334124194,-348.10892414,0.00034758,120]
[392317062,1761334124217,-165.00891894,0.00034758,30]
[392317063,1761334124240,-1404.46609313,0.00034758,60]
[392317064,1761334124265,-300.8775715,0.00034758,120]
[392317065,1761334124289,-447.3985863,0.00034758,120]
[392317066,1761334124312,-1048.16471525,0.00034758,120]
[392317067,1761334124337,-200.18701282,0.00034758,120]
[392317068,1761334124361,-438.62340524,0.00034758,120]
[392317069,1761334124383,-1105.3688127,0.00034758,120]
[392317070,1761334124406,-222.01420956,0.00034758,120]
[392317071,1761334124430,-1020.41643918,0.00034758,120]
[392317072,1761334124452,-325.9359182,0.00034758,120]
[392317073,1761334124477,-760.69642807,0.00034758,60]
[392317074,1761334124500,-403.60300187,0.00034758,60]
[392317075,1761334124524,-952.16584378,0.00034758,60]
[392317076,1761334124547,-167.15546364,0.00034758,120]
[392317077,1761334124570,-157.45067624,0.00034758,30]
[392317078,1761334124592,-225.58604054,0.00034758,120]
[392317079,1761334124615,-447.98247594,0.00034758,120]
[392317080,1761334124637,-704.4281189,0.00034758,30]
[392317081,1761334124661,-254.38684197,0.00034758,120]
[392317082,1761334124684,-264.89148498,0.00034758,120]
[392317083,1761334124706,-353.91099256,0.00034758,120]
[392317084,1761334124729,-1489.83618128,0.00034758,120]
[392317085,1761334124752,-595.74351992,0.00034758,120]
[392317086,1761334124778,-470.92771292,0.00034758,120]
[392317087,1761334124987,-294.60854769,0.00034758,120]
[392317088,1761334125011,-296.73735609,0.00034758,120]
[392317089,1761334125035,-380.19369237,0.00034758,120]
[392317090,1761334125058,-664.03811977,0.00034758,120]
[392317091,1761334125082,-580.39809497,0.00034758,120]
[392317092,1761334125106,-160.96164188,0.00034758,120]
[392317093,1761334125129,-201.83468,0.00034758,60]
[392317094,1761334125152,-201.83468,0.00034758,60]
[392317095,1761334125177,-2384.98,0.00034758,30]
[392317096,1761334125200,-588.61313049,0.00034758,120]
[392317097,1761334125225,-1359.6417854,0.00034758,120]
[392317098,1761334125250,-1006.0,0.00034758,120]
[392317099,1761334125278,-200.0,0.00034758,30]
[392317100,1761334125301,-2350.07033,0.00034758,30]
[392317101,1761334125324,-922.2,0.00034758,90]
[392317102,1761334125347,-75000.0,0.00034758,31]
[392317103,1761334125371,-482964.40440238,0.00034758,120]
[392317104,1761334125394,-380.59342043,0.00034758,30]
[392317105,1761334125416,-500.0,0.00034758,30]
[392317106,1761334125439,-500.0,0.00034758,30]
[392317107,1761334125461,-500.0,0.00034758,30]
[392317108,1761334125484,-500.0,0.00034758,30]
[392317109,1761334125507,-500.0,0.00034758,30]
[392317110,1761334125532,-10000.0,0.00034758,120]
[392317111,1761334125557,-10000.0,0.00034758,120]
[392317112,1761334125582,-10000.0,0.00034758,120]
[392317113,1761334125605,-10000.0,0.00034758,120]
[392317114,1761334125628,-500.0,0.00034758,60]
[392317115,1761334125653,-500.0,0.00034758,60]
[392317116,1761334125676,-500.0,0.00034758,60]
[392317117,1761334125700,-500.0,0.00034758,60]
[392317118,1761334125725,-500.0,0.00034758,60]
[392317119,1761334125751,-500.0,0.00034758,60]
[392317120,1761334125785,-500.0,0.00034758,60]
[392317121,1761334125809,-500.0,0.00034758,60]
[392317122,1761334125837,-500.0,0.00034758,60]
[392317123,1761334125863,-500.0,0.00034758,60]
[392317124,1761334125887,-585.71615596,0.00034758,60]
[392317125,1761334125911,-5413.59988287,0.00034758,32]
[392317126,1761334125935,-500.0,0.00034758,30]
[392317127,1761334125961,-500.0,0.00034758,30]
[392317128,1761334125984,-515.98121233,0.00034758,30]
[392317129,1761334126009,-500.0,0.00034758,30]
[392317130,1761334126033,-447.97750384,0.00034758,30]
[392317131,1761334126060,-500.0,0.00034758,30]
[392317132,1761334126084,-500.0,0.00034758,30]
[392317133,1761334126110,-535.70692209,0.00034758,30]
[392317134,1761334126135,-500.0,0.00034758,30]
[392317135,1761334126159,-500.0,0.00034758,30]
[392317136,1761334126183,-500.0,0.00034758,30]
[392317137,1761334126206,-500.0,0.00034758,30]
[392317138,1761334126229,-561.46049693,0.00034758,30]
[392317139,1761334126251,-500.0,0.00034758,30]
[392317140,1761334126274,-500.0,0.00034758,30]
[392317141,1761334126298,-500.0,0.00034758,30]
[392317142,1761334126322,-500.0,0.00034758,30]
[392317143,1761334126346,-500.0,0.00034758,30]
[392317144,1761334126371,-500.0,0.00034758,30]
[392317145,1761334126395,-560.0,0.00034758,30]
[392317146,1761334126418,-231.37426931,0.00034758,30]
[392317147,1761334126441,-500.0,0.00034758,30]
[392317148,1761334126464,-500.0,0.00034758,30]
[392317149,1761334126488,-378.7965603,0.00034758,30]
[392317150,1761334126513,-500.0,0.00034758,30]
[392317151,1761334126536,-500.0,0.00034758,30]
[392317152,1761334126558,-500.0,0.00034758,30]
[392317153,1761334126581,-500.0,0.00034758,30]
[392317154,1761334126604,-460.99422071,0.00034758,30]
[392317155,1761334126626,-500.0,0.00034758,30]
[392317156,1761334126647,-500.0,0.00034758,30]
[392317157,1761334126672,-500.0,0.00034758,30]
[392317158,1761334126693,-500.0,0.00034758,30]
[392317159,1761334126715,-503.75610632,0.00034758,30]
[392317160,1761334126738,-500.0,0.00034758,30]
[392317161,1761334126762,-500.0,0.00034758,30]
[392317162,1761334126789,-500.0,0.00034758,30]
[392317163,1761334126813,-500.0,0.00034758,30]
[392317164,1761334126837,-500.0,0.00034758,30]
[392317165,1761334126860,-500.0,0.00034758,30]
[392317166,1761334126888,-500.0,0.00034758,30]
[392317167,1761334126912,-584.30223239,0.00034758,30]
[392317168,1761334126936,-500.0,0.00034758,30]
[392317169,1761334126959,-500.0,0.00034758,30]
[392317170,1761334126981,-500.0,0.00034758,30]
[392317171,1761334127004,-500.0,0.00034758,30]
[392317172,1761334127029,-500.0,0.00034758,30]
[392317173,1761334127052,-500.0,0.00034758,30]
[392317174,1761334127074,-306.34551519,0.00034758,30]
[392317175,1761334127097,-500.0,0.00034758,30]
[392317176,1761334127119,-500.0,0.00034758,30]
[392317177,1761334127142,-605.06982581,0.00034758,30]
[392317178,1761334127165,-500.0,0.00034758,30]
[392317179,1761334127190,-500.0,0.00034758,30]
[392317180,1761334127214,-500.83659199,0.00034758,30]
[392317181,1761334127242,-222.88,0.00034758,30]
[392317182,1761334127431,-222.88,0.00034758,30]
[392317183,1761334127455,-222.88,0.00034758,30]
[392317184,1761334127477,-222.88,0.00034758,30]
[392317185,1761334127500,-222.88,0.00034758,30]
[392317186,1761334127523,-222.88,0.00034758,30]
[392317187,1761334127546,-500.0,0.00034758,30]
[392317188,1761334127569,-222.88,0.00034758,30]
[392317189,1761334127592,-500.0,0.00034758,30]
[392317190,1761334127615,-222.88,0.00034758,30]
[392317191,1761334127639,-500.0,0.00034758,30]
[392317192,1761334127663,-222.88,0.00034758,30]
[392317193,1761334127686,-502.97174618,0.00034758,30]
[392317194,1761334127709,-222.88,0.00034758,30]
[392317195,1761334127734,-222.88,0.00034758,30]
[392317196,1761334127763,-222.88,0.00034758,30]
[392317197,1761334127788,-222.88,0.00034758,30]
[392317198,1761334127812,-222.88,0.00034758,30]
[392317199,1761334127838,-222.88,0.00034758,30]
[392317200,1761334127865,-222.88,0.00034758,30]
[392317201,1761334127890,-222.88,0.00034758,30]
[392317202,1761334127914,-222.88,0.00034758,30]
[392317203,1761334127938,-222.88,0.00034758,30]
[392317204,1761334127961,-222.88,0.00034758,30]
[392317205,1761334127984,-500.0,0.00034758,30]
[392317206,1761334128007,-222.88,0.00034758,30]
[392317207,1761334128033,-500.0,0.00034758,30]
[392317208,1761334128055,-222.88,0.00034758,30]
[392317209,1761334128080,-500.85872712,0.00034758,30]
[392317210,1761334128102,-222.88,0.00034758,30]
[392317211,1761334128124,-500.0,0.00034758,30]
[392317212,1761334128146,-222.97768273,0.00034758,30]
[392317213,1761334128169,-500.0,0.00034758,30]
[392317214,1761334128192,-221.466583,0.00034758,30]
[392317215,1761334128215,-516.8894427,0.00034758,30]
[392317216,1761334128238,-500.0,0.00034758,30]
[392317217,1761334128261,-501.07956334,0.00034758,30]
[392317218,1761334128284,-500.0,0.00034758,30]
[392317219,1761334128307,-500.0,0.00034758,30]
[392317220,1761334128331,-585.89380734,0.00034758,30]
[392317221,1761334128354,-510.36475785,0.00034758,30]
[392317222,1761334128378,-500.0,0.00034758,30]
[392317223,1761334128405,-500.0,0.00034758,30]
[392317224,1761334128429,-500.0,0.00034758,30]
[392317225,1761334128452,-500.0,0.00034758,30]
[392317226,1761334128476,-500.0,0.00034758,30]
[392317227,1761334128500,-500.0,0.00034758,30]
[392317228,1761334128523,-500.0,0.00034758,30]
[392317229,1761334128546,-500.0,0.00034758,30]
[392317230,1761334128569,-500.0,0.00034758,30]
[392317231,1761334128595,-500.0,0.00034758,30]
[392317232,1761334128619,-500.0,0.00034758,30]
[392317233,1761334128643,-500.0,0.00034758,30]
[392317234,1761334128667,-500.0,0.00034758,30]
[392317235,1761334128690,-502.09311687,0.00034758,30]
[392317236,1761334128714,-500.0,0.00034758,30]
[392317237,1761334128738,-500.0,0.00034758,30]
[392317238,1761334128764,-500.0,0.00034758,30]
[392317239,1761334128788,-535.03586396,0.00034758,30]
[392317240,1761334128811,-500.0,0.00034758,30]
[392317241,1761334128834,-500.0,0.00034758,30]
[392317242,1761334128862,-500.0,0.00034758,30]
[392317243,1761334128886,-500.0,0.00034758,30]
[392317244,1761334128913,-500.0,0.00034758,30]
[392317245,1761334128944,-500.0,0.00034758,30]
[392317246,1761334128980,-500.0,0.00034758,30]
[392317247,1761334129013,-504.6305457,0.00034758,30]
[392317248,1761334129046,-500.0,0.00034758,30]
[392317249,1761334129079,-500.0,0.00034758,30]